fUST/lending_fUST_20250625
["ID","MTS","AMOUNT","RATE_DAILY","PERIOD"]
[367520542,1750842639277,-460.0,0.00017961,2]
[367520544,1750842639286,-460.0,0.00017961,2]
[367520546,1750842639296,-460.0,0.00017961,2]
[367520548,1750842639304,-460.0,0.00017961,2]
[367520550,1750842639314,-460.0,0.00017961,2]
[367520552,1750842639324,-2455.19,0.00017961,2]
[367520554,1750842639333,-1836.07,0.00017961,2]
[367520556,1750842639343,-460.0,0.00017962,2]
[367520558,1750842639352,-244.01142538,0.00017962,2]
[367520560,1750842639362,-811.3,0.00017962,2]
[367520562,1750842639371,-460.0,0.00017962,2]
[367520564,1750842639380,-554.05,0.00017962,2]
[367520566,1750842639390,-460.0,0.00017962,2]
[367520568,1750842639400,-550.59,0.00017962,2]
[367520570,1750842639410,-460.0,0.00017962,2]
[367520571,1750842639419,-5129.92,0.00017962,2]
[367520573,1750842639429,-460.0,0.00017962,2]
[367520575,1750842639442,-460.0,0.00017962,2]
[367520577,1750842639451,-460.0,0.00017962,2]
[367520579,1750842639461,-377.24,0.00017962,2]
[367520581,1750842639471,-531.54,0.00017962,2]
[367520583,1750842639481,-460.0,0.00017962,2]
[367520585,1750842639490,-2074.16,0.00017962,2]
[367520587,1750842639499,-460.0,0.00017962,2]
[367520589,1750842639509,-460.0,0.00017962,2]
[367520591,1750842639518,-1396.48,0.00017962,2]
[367520593,1750842639527,-460.0,0.00017962,2]
[367520595,1750842639536,-460.0,0.00017962,2]
[367520597,1750842639546,-575.32,0.00017963,2]
[367520598,1750842639556,-479.07,0.00017963,2]
[367520600,1750842639565,-1591.88,0.00017963,2]
[367520602,1750842639574,-835.1,0.00017963,2]
[367520604,1750842639584,-4434.54,0.00017963,2]
[367520606,1750842639593,-959.08,0.00017963,2]
[367520608,1750842639602,-4428.0,0.00018,2]
[367520610,1750842639612,-302.99578303,0.00018012,2]
[367520612,1750842639621,-500.0,0.00018012,2]
[367520614,1750842639631,-500.0,0.00018023,2]
[367520616,1750842639640,-500.0,0.00018068,2]
[367520618,1750842639649,-12421.75982232,0.00018141,2]
[367520620,1750842639658,-160.0,0.00018174,2]
[367520622,1750842639667,-160.0,0.00018174,2]
[367520624,1750842639676,-160.0,0.00018174,2]
[367520626,1750842639685,-160.0,0.00018174,2]
[367520628,1750842639694,-160.0,0.00018174,2]
[367520630,1750842639703,-524.21181985,0.00018174,2]
[367520632,1750842639713,-836.86812089,0.00018174,2]
[367520633,1750842639722,-160.0,0.00018174,2]
[367520635,1750842639731,-846.80634355,0.00018174,2]
[367520637,1750842639740,-160.0,0.00018174,2]
[367520639,1750842639750,-230.22714675,0.00018174,2]
[367520641,1750842639759,-12558.06783089,0.00018174,2]
[367520643,1750842639768,-213.69531788,0.00018174,2]
[367520645,1750842639777,-425.18553072,0.00018174,2]
[367520647,1750842639786,-160.0,0.00018174,2]
[367520649,1750842639796,-168.0,0.00018188,2]
[367520651,1750842639805,-151.0,0.000182,2]
[367520652,1750842639814,-1771.96663556,0.00018211,2]
[367520654,1750842639824,-460.0,0.00018235,2]
[367520656,1750842639833,-2349.67,0.00018235,2]
[367520658,1750842639841,-460.0,0.00018235,2]
[367520660,1750842639850,-460.0,0.00018235,2]
[367520662,1750842639859,-686.86,0.00018235,2]
[367520664,1750842639868,-1720.47,0.00018235,2]
[367520666,1750842639877,-460.0,0.00018235,2]
[367520668,1750842639887,-460.0,0.00018235,2]
[367520670,1750842639896,-460.0,0.00018235,2]
[367520672,1750842639906,-460.0,0.00018235,2]
[367520674,1750842639915,-460.0,0.00018235,2]
[367520676,1750842639924,-460.0,0.00018235,2]
[367520678,1750842639933,-460.0,0.00018235,2]
[367520680,1750842639942,-2455.19,0.00018235,2]
[367520681,1750842639951,-460.0,0.00018236,2]
[367520683,1750842639960,-811.3,0.00018236,2]
[367520685,1750842639969,-440.0,0.00018236,2]
[367520687,1750842639979,-554.05,0.00018236,2]
[367520689,1750842639988,-460.0,0.00018236,2]
[367520691,1750842639997,-550.59,0.00018236,2]
[367520693,1750842640006,-460.0,0.00018236,2]
[367520695,1750842640016,-5129.92,0.00018236,2]
[367520697,1750842640025,-460.0,0.00018236,2]
[367520699,1750842640034,-364.59,0.00018236,2]
[367520701,1750842640043,-460.0,0.00018236,2]
[367520704,1750842640052,-531.54,0.00018236,2]
[367520706,1750842640061,-460.0,0.00018236,2]
[367520708,1750842640071,-2074.16,0.00018236,2]
[367520709,1750842640080,-460.0,0.00018236,2]
[367520711,1750842640089,-460.0,0.00018236,2]
[367520713,1750842640098,-1396.48,0.00018236,2]
[367520715,1750842640107,-460.0,0.00018236,2]
[367520717,1750842640117,-460.0,0.00018236,2]
[367520719,1750842640126,-575.32,0.00018237,2]
[367520721,1750842640135,-479.07,0.00018237,2]
[367520723,1750842640144,-1591.88,0.00018237,2]
[367520725,1750842640153,-835.1,0.00018237,2]
[367520727,1750842640163,-4434.54,0.00018237,2]
[367520729,1750842640172,-959.08,0.00018237,2]
[367520731,1750842640181,-500.0,0.00018276,2]
[367520733,1750842640190,-500.0,0.00018276,2]
[367520734,1750842640199,-500.0,0.00018276,2]
[367520736,1750842640208,-500.0,0.0001831,2]
[367520739,1750842640219,-500.0,0.0001831,2]
[367520740,1750842640230,-500.0,0.0001831,2]
[367520742,1750842640239,-500.0,0.0001831,2]
[367520744,1750842640248,-350.0,0.00018357,2]
[367520746,1750842640257,-500.0,0.0001836,2]
[367520748,1750842640267,-500.0,0.00018363,2]
[367520749,1750842640276,-12421.75982232,0.00018383,2]
[367520751,1750842640285,-180.00720029,0.000184,2]
[367520753,1750842640295,-151.0,0.000184,2]
[367520755,1750842640305,-1680.0,0.00018422,2]
[367520757,1750842640314,-420.0,0.00018422,2]
[367520759,1750842640323,-420.0,0.00018422,2]
[367520761,1750842640333,-168.0,0.00018475,2]
[367520763,1750842640343,-460.0,0.00018509,2]
[367520765,1750842640352,-2349.67,0.00018509,2]
[367520767,1750842640361,-428.12083371,0.00018509,2]
[367520769,1750842640371,-460.0,0.00018509,2]
[367520771,1750842640380,-686.86,0.00018509,2]
[367520773,1750842640389,-1720.47,0.00018509,2]
[367520775,1750842640398,-460.0,0.00018509,2]
[367520777,1750842640407,-460.0,0.00018509,2]
[367520779,1750842640416,-460.0,0.00018509,2]
[367520781,1750842640425,-460.0,0.00018509,2]
[367520783,1750842640434,-460.0,0.00018509,2]
[367520784,1750842640444,-460.0,0.00018509,2]
[367520786,1750842640453,-460.0,0.00018509,2]
[367520788,1750842640463,-2455.19,0.00018509,2]
[367520790,1750842640474,-460.0,0.0001851,2]
[367520792,1750842640484,-811.3,0.0001851,2]
[367520794,1750842640493,-554.05,0.0001851,2]
[367520796,1750842640502,-460.0,0.0001851,2]
[367520798,1750842640512,-550.59,0.0001851,2]
[367520800,1750842640521,-308.53,0.0001851,2]
[367520802,1750842640531,-5129.92,0.0001851,2]
[367520804,1750842640540,-460.0,0.0001851,2]
[367520806,1750842640549,-460.0,0.0001851,2]
[367520808,1750842640559,-531.54,0.0001851,2]
[367520810,1750842640568,-460.0,0.0001851,2]
[367520812,1750842640578,-2074.16,0.0001851,2]
[367520814,1750842640587,-460.0,0.0001851,2]
[367520829,1750842640707,-460.0,0.0001851,2]
[367520832,1750842640743,-1396.48,0.0001851,2]
[367520834,1750842640753,-460.0,0.0001851,2]
[367520836,1750842640763,-460.0,0.0001851,2]
[367520838,1750842640771,-575.32,0.00018511,2]
[367520840,1750842640780,-479.07,0.00018511,2]
[367520841,1750842640789,-1591.88,0.00018511,2]
[367520843,1750842640799,-835.1,0.00018511,2]
[367520845,1750842640808,-4434.54,0.00018511,2]
[367520847,1750842640817,-959.08,0.00018511,2]
[367520849,1750842640826,-1680.0,0.00018512,2]
[367520851,1750842640836,-168.0,0.00018532,2]
[367520853,1750842640846,-1000.0,0.0001856,2]
[367520855,1750842640855,-1000.0,0.00018571,2]
[367520857,1750842640864,-151.0,0.000186,2]
[367520859,1750842640873,-12421.75982232,0.00018624,2]
[367520861,1750842640882,-5888.0,0.00018633,2]
[367520863,1750842640892,-1771.96663556,0.00018659,2]
[367520865,1750842640901,-5000.0,0.00018659,2]
[367520867,1750842640911,-500.0,0.00018659,2]
[367520869,1750842640920,-500.0,0.00018659,2]
[367520871,1750842640930,-207.4,0.00018659,2]
[367520872,1750842640939,-500.0,0.00018659,2]
[367520874,1750842640947,-500.0,0.00018659,2]
[367520876,1750842640956,-500.0,0.00018659,2]
[367520878,1750842640965,-500.0,0.00018659,2]
[367520880,1750842640974,-500.0,0.00018659,2]
[367520882,1750842640983,-500.0,0.00018659,2]
[367520884,1750842640992,-500.0,0.00018659,2]
[367520886,1750842641002,-152.61247216,0.00018659,2]
[367520888,1750842641011,-500.0,0.00018659,2]
[367520890,1750842641020,-1688.0,0.00018659,2]
[367520892,1750842641029,-500.0,0.00018659,2]
[367520894,1750842641038,-500.0,0.00018659,2]
[367520895,1750842641048,-500.0,0.00018659,2]
[367520897,1750842641057,-500.0,0.00018659,2]
[367520899,1750842641066,-500.0,0.00018659,2]
[367520901,1750842641075,-500.0,0.00018659,2]
[367520903,1750842641084,-500.0,0.00018659,2]
[367520905,1750842641094,-500.0,0.00018659,2]
[367520907,1750842641104,-500.0,0.00018659,2]
[367520909,1750842641113,-500.0,0.00018659,2]
[367520911,1750842641122,-500.0,0.00018659,2]
[367520913,1750842641132,-500.0,0.00018659,2]
[367520915,1750842641141,-500.0,0.00018659,2]
[367520917,1750842641151,-500.0,0.00018659,2]
[367520919,1750842641160,-500.0,0.00018659,2]
[367520921,1750842641169,-500.0,0.00018659,2]
[367520923,1750842641177,-500.0,0.00018659,2]
[367520924,1750842641186,-500.0,0.00018659,2]
[367520925,1750842641195,-500.0,0.00018659,2]
[367520926,1750842641204,-500.0,0.00018659,2]
[367520927,1750842641213,-500.0,0.00018659,2]
[367520928,1750842641223,-500.0,0.00018659,2]
[367520929,1750842641232,-500.0,0.00018659,2]
[367520930,1750842641241,-500.0,0.00018659,2]
[367520931,1750842641250,-500.0,0.00018659,2]
[367520932,1750842641259,-500.0,0.00018659,2]
[367520933,1750842641268,-151.0,0.00018659,2]
[367520934,1750842641277,-151.0,0.00018659,2]
[367520935,1750842641286,-151.0,0.00018659,2]
[367520936,1750842641294,-288.89272804,0.00018659,2]
[367520937,1750842641304,-151.0,0.00018659,2]
[367520938,1750842641313,-151.0,0.00018659,2]
[367520939,1750842641322,-227.54651037,0.00018659,2]
[367520940,1750842641331,-25000.0,0.00018659,2]
[367520941,1750842641339,-1750.456,0.00018714,2]
[367520942,1750842641348,-168.0,0.00018755,2]
[367520943,1750842641357,-1815.222872,0.00018769,2]
[367520944,1750842641366,-460.0,0.00018783,2]
[367520946,1750842641376,-2349.67,0.00018783,2]
[367520947,1750842641385,-362.73812907,0.00018783,2]
[367520949,1750842641395,-686.86,0.00018783,2]
[367520951,1750842641404,-1720.47,0.00018783,2]
[367520953,1750842641414,-460.0,0.00018783,2]
[367520955,1750842641423,-460.0,0.00018783,2]
[367520957,1750842641432,-460.0,0.00018783,2]
[367520959,1750842641442,-460.0,0.00018783,2]
[367520961,1750842641451,-460.0,0.00018783,2]
[367520963,1750842641461,-352.13,0.00018783,2]
[367520966,1750842641471,-460.0,0.00018783,2]
[367520968,1750842641481,-2455.19,0.00018783,2]
[367520970,1750842641491,-460.0,0.00018784,2]
[367520972,1750842641501,-811.3,0.00018784,2]
[367520973,1750842641510,-554.05,0.00018784,2]
[367520976,1750842641519,-460.0,0.00018784,2]
[367520978,1750842641530,-550.59,0.00018784,2]
[367520980,1750842641540,-5129.92,0.00018784,2]
[367520982,1750842641549,-460.0,0.00018784,2]
[367520984,1750842641558,-460.0,0.00018784,2]
[367520986,1750842641567,-531.54,0.00018784,2]
[367520988,1750842641576,-250.17245497,0.00018784,2]
[367520990,1750842641586,-2074.16,0.00018784,2]
[367520992,1750842641595,-460.0,0.00018784,2]
[367520994,1750842641605,-460.0,0.00018784,2]
[367520996,1750842641615,-1396.48,0.00018784,2]
[367520998,1750842641624,-460.0,0.00018784,2]
[367521000,1750842641634,-460.0,0.00018784,2]
[367521002,1750842641643,-151.0,0.00018785,2]
[367521004,1750842641652,-151.0,0.00018785,2]
[367521006,1750842641661,-151.0,0.00018785,2]
[367521008,1750842641670,-151.0,0.00018785,2]
[367521010,1750842641679,-450.464272,0.00018785,2]
[367521012,1750842641689,-450.464272,0.00018785,2]
[367521014,1750842641698,-575.32,0.00018785,2]
[367521016,1750842641708,-479.07,0.00018785,2]
[367521018,1750842641717,-1591.88,0.00018785,2]
[367521020,1750842641728,-835.1,0.00018785,2]
[367521022,1750842641737,-4434.54,0.00018785,2]
[367521024,1750842641746,-959.08,0.00018785,2]
[367521026,1750842641756,-168.0,0.00018785,2]
[367521028,1750842641766,-151.0,0.00018788,2]
[367521030,1750842641776,-151.0,0.00018788,2]
[367521032,1750842641785,-151.0,0.00018788,2]
[367521034,1750842641794,-151.0,0.00018788,2]
[367521036,1750842641803,-151.0,0.00018788,2]
[367521038,1750842641812,-246.633644,0.00018788,2]
[367521040,1750842641821,-246.633644,0.00018788,2]
[367521042,1750842641830,-151.0,0.00018788,2]
[367521043,1750842641840,-151.0,0.000188,2]
[367521045,1750842641851,-1882.38611826,0.00018824,2]
[367521047,1750842641861,-1000.0,0.00018824,2]
[367521049,1750842641870,-540.73312332,0.00018824,2]
[367521051,1750842641879,-426.053602,0.00018829,2]
[367521053,1750842641889,-502.51720373,0.00018858,2]
[367521055,1750842641898,-1000.0,0.00018858,2]
[367521057,1750842641908,-1000.0,0.00018858,2]
[367521059,1750842641917,-500.0,0.00018858,2]
[367521061,1750842641927,-12421.75982232,0.00018866,2]
[367521063,1750842641937,-1952.03440464,0.00018879,2]
[367521065,1750842641947,-349.08809935,0.00018894,2]
[367521067,1750842641956,-151.0,0.000189,2]
[367521069,1750842641965,-151.0,0.000189,2]
[367521071,1750842641975,-70000.0,0.000189,2]
[367521073,1750842641984,-151.0,0.000189,2]
[367521075,1750842641994,-3263.46329159,0.000189,2]
[367521077,1750842642003,-500.0,0.00018908,2]
[367521079,1750842642012,-1000.0,0.00018911,2]
[367521081,1750842642022,-2024.25967761,0.00018934,2]
[367521083,1750842642032,-2099.15728568,0.00018989,2]
[367521085,1750842642042,-72617.94995232,0.00019,2]
[367521087,1750842642051,-60000.0,0.00019,2]
[367521089,1750842642060,-151.0,0.00019,2]
[367521091,1750842642069,-151.0,0.00019,2]
[367521093,1750842642079,-151.0,0.00019,2]
[367521095,1750842642088,-151.0,0.00019,2]
[367521097,1750842642100,-151.0,0.00019,2]
[367521100,1750842642110,-151.0,0.00019,2]
[367521102,1750842642119,-151.0,0.00019,2]
[367521103,1750842642128,-151.0,0.00019,2]
[367521105,1750842642138,-151.0,0.00019,2]
[367521107,1750842642147,-426.05360201,0.00019035,2]
[367521109,1750842642157,-1530.80040043,0.00019044,2]
[367521111,1750842642166,-460.0,0.00019057,2]
[367521113,1750842642177,-2349.67,0.00019057,2]
[367521115,1750842642187,-686.86,0.00019057,2]
[367521117,1750842642196,-1720.47,0.00019057,2]
[367521119,1750842642205,-460.0,0.00019057,2]
[367521121,1750842642215,-507.73136807,0.00019057,2]
[367521123,1750842642224,-460.0,0.00019057,2]
[367521125,1750842642233,-460.0,0.00019057,2]
[367521127,1750842642242,-460.0,0.00019057,2]
[367521129,1750842642251,-460.0,0.00019057,2]
[367521131,1750842642261,-2455.19,0.00019057,2]
[367521133,1750842642270,-460.0,0.00019058,2]
[367521135,1750842642280,-811.3,0.00019058,2]
[367521137,1750842642290,-151.0,0.00019058,2]
[367521139,1750842642299,-151.575806,0.00019058,2]
[367521141,1750842642308,-151.0,0.00019058,2]
[367521143,1750842642318,-554.05,0.00019058,2]
[367521145,1750842642327,-167.71,0.00019058,2]
[367521147,1750842642336,-550.59,0.00019058,2]
[367521149,1750842642346,-5129.92,0.00019058,2]
[367521151,1750842642356,-460.0,0.00019058,2]
[367521153,1750842642365,-460.0,0.00019058,2]
[367521155,1750842642374,-531.54,0.00019058,2]
[367521157,1750842642383,-2074.16,0.00019058,2]
[367521159,1750842642392,-1824.157056,0.00019058,2]
[367521161,1750842642401,-1824.157056,0.00019058,2]
[367521163,1750842642410,-460.0,0.00019058,2]
[367521165,1750842642420,-460.0,0.00019058,2]
[367521167,1750842642429,-1396.48,0.00019058,2]
[367521169,1750842642440,-460.0,0.00019058,2]
[367521171,1750842642450,-460.0,0.00019058,2]
[367521173,1750842642459,-151.0,0.00019059,2]
[367521175,1750842642468,-151.0,0.00019059,2]
[367521177,1750842642479,-151.0,0.00019059,2]
[367521179,1750842642488,-152.240605,0.00019059,2]
[367521181,1750842642497,-575.32,0.00019059,2]
[367521183,1750842642506,-479.07,0.00019059,2]
[367521185,1750842642515,-1591.88,0.00019059,2]
[367521187,1750842642525,-835.1,0.00019059,2]
[367521189,1750842642535,-4434.54,0.00019059,2]
[367521191,1750842642543,-959.08,0.00019059,2]
[367521193,1750842642553,-8891.04597844,0.000191,2]
[367521278,1750842643620,-460.0,0.00016865,2]
[367521279,1750842643630,-460.0,0.00016865,2]
[367521280,1750842643640,-500.0,0.00017139,2]
[367521281,1750842643649,-500.0,0.00017139,2]
[367521282,1750842643659,-387.62617991,0.00017139,2]
[367524881,1750843328783,159.806349,0.00013699,2]
[367524883,1750843492284,152.270095,0.00023,30]
[367524965,1750843719825,150.99999984,0.0002,120]
[367524966,1750843729415,-5000.0,0.0001643,2]
[367524967,1750843729440,-4244.0,0.00016596,2]
[367524997,1750843832621,-5000.0,0.0001643,2]
[367524998,1750843832631,-12.9041518,0.00016596,2]
[367525000,1750843832640,-340.60711225,0.00016764,2]
[367525002,1750843832651,-1200.0,0.00016859,2]
[367525004,1750843832664,-1200.0,0.0001686,2]
[367525005,1750843832673,-300.0,0.0001686,2]
[367525006,1750843832683,-300.0,0.0001686,2]
[367525007,1750843832692,-300.0,0.0001686,2]
[367525008,1750843832703,-300.0,0.0001686,2]
[367525009,1750843832712,-460.0,0.00016862,2]
[367525010,1750843832721,-460.0,0.00016862,2]
[367525011,1750843832729,-2072.83,0.00016862,2]
[367525012,1750843832737,-460.0,0.00016862,2]
[367525013,1750843832747,-460.0,0.00016862,2]
[367525014,1750843832756,-460.0,0.00016862,2]
[367525017,1750843832764,-460.0,0.00016862,2]
[367525018,1750843832773,-460.0,0.00016862,2]
[367525019,1750843832781,-460.0,0.00016862,2]
[367525020,1750843832789,-460.0,0.00016862,2]
[367525021,1750843832797,-460.0,0.00016862,2]
[367525022,1750843832806,-460.0,0.00016862,2]
[367525023,1750843832814,-460.0,0.00016862,2]
[367525024,1750843832824,-616.12,0.00016862,2]
[367525025,1750843832832,-460.0,0.00016862,2]
[367525026,1750843832840,-460.0,0.00016862,2]
[367525027,1750843832849,-1523.86,0.00016862,2]
[367525028,1750843832858,-460.0,0.00016862,2]
[367525029,1750843832865,-460.0,0.00016862,2]
[367525030,1750843832874,-460.0,0.00016862,2]
[367525031,1750843832882,-460.0,0.00016862,2]
[367525032,1750843832890,-562.58240528,0.00016862,2]
[367525033,1750843832898,-460.0,0.00016862,2]
[367525034,1750843832905,-1583.59,0.00016862,2]
[367525035,1750843832913,-460.0,0.00016862,2]
[367525036,1750843832921,-440.06076546,0.00016862,2]
[367525037,1750843832929,-460.0,0.00016862,2]
[367525038,1750843832938,-460.0,0.00016862,2]
[367525039,1750843832946,-477.24165034,0.00016862,2]
[367525040,1750843832955,-460.53666612,0.00016862,2]
[367525041,1750843832965,-460.0,0.00016863,2]
[367525042,1750843832974,-460.0,0.00016863,2]
[367525043,1750843832985,-500.0,0.00016863,2]
[367525044,1750843832995,-460.0,0.00016863,2]
[367525045,1750843833004,-460.0,0.00016863,2]
[367525046,1750843833014,-460.0,0.00016863,2]
[367525048,1750843833023,-460.0,0.00016863,2]
[367525049,1750843833032,-460.0,0.00016863,2]
[367525050,1750843833042,-460.0,0.00016863,2]
[367525052,1750843833051,-206.13342194,0.00016863,2]
[367525054,1750843833060,-443.46265963,0.00016863,2]
[367525056,1750843833070,-460.0,0.00016863,2]
[367525058,1750843833079,-460.0,0.00016863,2]
[367525060,1750843833088,-460.0,0.00016863,2]
[367525062,1750843833097,-460.0,0.00016863,2]
[367525064,1750843833106,-594.41911813,0.00016863,2]
[367525066,1750843833115,-425.58830729,0.00016863,2]
[367525068,1750843833125,-460.0,0.00016863,2]
[367525070,1750843833134,-460.0,0.00016863,2]
[367525072,1750843833143,-460.0,0.00016863,2]
[367525074,1750843833153,-460.0,0.00016863,2]
[367525076,1750843833163,-460.0,0.00016863,2]
[367525077,1750843833173,-460.0,0.00016863,2]
[367525078,1750843833182,-460.0,0.00016863,2]
[367525080,1750843833191,-460.0,0.00016863,2]
[367525082,1750843833201,-460.0,0.00016863,2]
[367525084,1750843833210,-460.9257826,0.00016863,2]
[367525086,1750843833219,-460.0,0.00016863,2]
[367525088,1750843833229,-365.813048,0.00016863,2]
[367525090,1750843833238,-460.0,0.00016863,2]
[367525092,1750843833248,-460.0,0.00016863,2]
[367525094,1750843833256,-2045.99,0.00016863,2]
[367525095,1750843833264,-460.0,0.00016863,2]
[367525099,1750843833273,-186.2680995,0.00016863,2]
[367525102,1750843833282,-481.97,0.00016863,2]
[367525105,1750843833296,-460.0,0.00016863,2]
[367525108,1750843833305,-460.0,0.00016863,2]
[367525110,1750843833313,-460.0,0.00016863,2]
[367525113,1750843833321,-460.0,0.00016863,2]
[367525116,1750843833331,-460.0,0.00016863,2]
[367525118,1750843833339,-460.0,0.00016863,2]
[367525120,1750843833348,-505.76,0.00016863,2]
[367525122,1750843833357,-460.0,0.00016863,2]
[367525125,1750843833366,-4516.73,0.00016863,2]
[367525128,1750843833375,-460.0,0.00016863,2]
[367525131,1750843833383,-460.0,0.00016863,2]
[367525135,1750843833393,-1522.03,0.00016863,2]
[367525137,1750843833401,-460.0,0.00016863,2]
[367525139,1750843833410,-433.04079317,0.00016863,2]
[367525141,1750843833419,-461.6,0.00016863,2]
[367525143,1750843833428,-460.0,0.00016863,2]
[367525146,1750843833437,-460.0,0.00016863,2]
[367525149,1750843833446,-460.0,0.00016863,2]
[367525152,1750843833456,-460.0,0.00016863,2]
[367525154,1750843833465,-460.0,0.00016863,2]
[367525156,1750843833475,-460.0,0.00016863,2]
[367525157,1750843833484,-460.0,0.00016863,2]
[367525158,1750843833494,-460.0,0.00016863,2]
[367525159,1750843833503,-460.0,0.00016863,2]
[367525160,1750843833705,-460.0,0.00016863,2]
[367525161,1750843833714,-460.0,0.00016863,2]
[367525162,1750843833724,-460.0,0.00016863,2]
[367525163,1750843833734,-489.05,0.00016863,2]
[367525164,1750843833744,-460.0,0.00016863,2]
[367525165,1750843833754,-460.0,0.00016863,2]
[367525166,1750843833764,-460.0,0.00016863,2]
[367525167,1750843833773,-460.0,0.00016863,2]
[367525168,1750843833783,-1054.0,0.00016864,2]
[367525169,1750843833793,-409.70245429,0.00016864,2]
[367525170,1750843833802,-460.0,0.00016864,2]
[367525171,1750843833812,-460.0,0.00016864,2]
[367525172,1750843833831,-460.0,0.00016864,2]
[367525173,1750843833842,-460.0,0.00016864,2]
[367525174,1750843833852,-453.0,0.00016864,2]
[367525175,1750843833863,-460.0,0.00016864,2]
[367525176,1750843833873,-460.0,0.00016864,2]
[367525177,1750843833883,-460.0,0.00016864,2]
[367525178,1750843833893,-749.92,0.00016864,2]
[367525179,1750843833903,-500.0,0.00016864,2]
[367525180,1750843833913,-460.0,0.00016864,2]
[367525181,1750843833924,-460.0,0.00016864,2]
[367525182,1750843833933,-460.0,0.00016864,2]
[367525183,1750843833943,-460.0,0.00016864,2]
[367525184,1750843833953,-500.0,0.00016864,2]
[367525185,1750843833963,-460.0,0.00016864,2]
[367525186,1750843833973,-460.0,0.00016864,2]
[367525187,1750843833983,-460.0,0.00016864,2]
[367525188,1750843833993,-460.0,0.00016864,2]
[367525189,1750843834003,-460.0,0.00016864,2]
[367525190,1750843834013,-460.0,0.00016864,2]
[367525191,1750843834021,-460.0,0.00016864,2]
[367525192,1750843834031,-460.0,0.00016864,2]
[367525193,1750843834040,-460.0,0.00016864,2]
[367525194,1750843834049,-273.92412284,0.00016864,2]
[367525195,1750843834058,-460.0,0.00016864,2]
[367525196,1750843834068,-211.78233546,0.00016864,2]
[367525197,1750843834087,-484.13766454,0.00016864,2]
[367525198,1750843834097,-460.0,0.00016864,2]
[367525199,1750843834106,-460.0,0.00016864,2]
[367525200,1750843834116,-585.45482685,0.00016864,2]
[367525201,1750843834126,-460.0,0.00016864,2]
[367525202,1750843834136,-1728.47,0.00016864,2]
[367525203,1750843834146,-460.0,0.00016864,2]
[367525204,1750843834156,-3695.45,0.00016864,2]
[367525205,1750843834166,-460.0,0.00016864,2]
[367525206,1750843834176,-471.9,0.00016864,2]
[367525207,1750843834186,-460.0,0.00016864,2]
[367525208,1750843834196,-460.0,0.00016864,2]
[367525209,1750843834206,-460.0,0.00016864,2]
[367525210,1750843834216,-460.0,0.00016864,2]
[367525211,1750843834226,-799.24,0.00016864,2]
[367525212,1750843834236,-460.0,0.00016864,2]
[367525213,1750843834246,-391.43141088,0.00016864,2]
[367525220,1750843838552,-5000.0,0.00016694,2]
[367525222,1750843838562,-460.0,0.00016862,2]